[Event "34th MPL National U12 Chess-ch 2022"]
[Site "Mysore"]
[Date "2022.04.11"]
[Round "5.2"]
[White "Reyan"]
[Black "Jain, Kushagra"]
[Result "1-0"]
[ECO "B23"]
[WhiteElo "1543"]
[BlackElo "1452"]
[Annotator "NA RC"]
[PlyCount "121"]
[EventDate "2022.04.09"]
[EventCountry "IND"]
[SourceTitle "playchess.com"]
[Source "ChessBase"]
[SourceQuality "1"]
[TimeControl "5400+30"]

1. e4 {[%emt 0:00:02]} c5 {[%emt 0:00:09]} 2. Nc3 {[%emt 0:00:06]} d6 {[%emt 0:00:27]} 3. d4 {[%emt 0:00:08]} cxd4 {[%emt 0:00:09]} 4. Qxd4 {[%emt 0:00:06]} Nc6 {[%emt 0:00:06]} 5. Qd2 {[%emt 0:00:17]} g6 {[%emt 0:01:32]} 6. b3 {[%emt 0:00:15]} Bh6 {[%emt 0:04:23]} 7. f4 {[%emt 0:00:08]} Nf6 {[%emt 0:02:11]} 8. Bb2 {[%emt 0:00:19]} e5 {[%emt 0:00:45]} 9. Nge2 {[%emt 0:00:30]} O-O {[%emt 0:01:39]} 10. O-O-O {[%emt 0:00:36]} Nd4 {[%emt 0:02:35]} 11. g3 {[%emt 0:00:35]} Bg4 {[%emt 0:01:36]} 12. Nxd4 {[%emt 0:00:55]} exd4 {[%emt 0:04:15]} 13. Ne2 {[%emt 0:00:32]} Bg7 {[%emt 0:06:34]} 14. Qxd4 {[%emt 0:00:38]} Re8 {[%emt 0:00:15]} 15. e5 {[%emt 0:07:48]} dxe5 {[%emt 0:24:20]} 16. Qxd8 {[%emt 0:23:28]} Rc8 {[%emt 0:47:34]} 17. Qxe8+ Rxe8 {[%emt 0:00:00]} 18. Rd8 {[%emt 0:00:41]} Rxd8 {[%emt 0:00:00]} 19. Bxe5 {[%emt 0:00:07]} Ne4 {[%emt 0:00:00]} 20. Bg2 {[%emt 0:01:55]} Bxe5 {[%emt 0:00:00]} 21. fxe5 {[%emt 0:00:34]} Nf2 {[%emt 0:00:00]} 22. Re1 {[%emt 0:01:06]} Rc8 {[%emt 0:00:00]} 23. Nf4 {[%emt 0:05:32]} g5 {[%emt 0:00:00]} 24. Rf1 {[%emt 0:00:09]} gxf4 {[%emt 0:00:00]} 25. Rxf2 {[%emt 0:00:06]} fxg3 {[%emt 0:00:00]} 26. hxg3 {[%emt 0:00:04]} b6 {[%emt 0:00:00]} 27. Rf4 {[%emt 0:04:37]} Be6 {[%emt 0:00:00]} 28. Kb2 {[%emt 0:06:43]} Kf8 {[%emt 0:00:00]} 29. Rh4 {[%emt 0:05:30]} Kg7 {[%emt 0:00:00]} 30. Ra4 {[%emt 0:03:29]} a5 {[%emt 0:00:00]} 31. Re4 {[%emt 0:01:45]} b5 {[%emt 0:00:00]} 32. c3 {[%emt 0:02:44]} Kg6 {[%emt 0:00:00]} 33. Bf1 {[%emt 0:16:04]} Rc5 {[%emt 0:00:00]} 34. Bd3 {[%emt 0:00:16]} Kg5 {[%emt 0:00:00]} 35. Re3 {[%emt 0:05:01]} h6 {[%emt 0:00:00]} 36. Kc2 {[%emt 0:00:49]} Kg4 {[%emt 0:04:58]} 37. Kd2 {[%emt 0:01:21]} h5 {[%emt 0:02:55]} 38. c4 {[%emt 0:01:21]} bxc4 {[%emt 0:00:42]} 39. bxc4 {[%emt 0:00:06]} Rc7 {[%emt 0:02:20]} 40. Be2+ {[%emt 0:00:47]} Kg5 {[%emt 0:00:03]} 41. Re4 {[%emt 0:00:28]} Bf5 {[%emt 0:00:42]} 42. Rd4 {[%emt 0:01:02]} Be6 {[%emt 0:00:28]} 43. Kc3 {[%emt 0:02:15]} Kf5 {[%emt 0:00:47]} 44. Rh4 {[%emt 0:00:34]} Kxe5 {[%emt 0:00:28]} 45. Rxh5+ {[%emt 0:00:03]} f5 {[%emt 0:00:13]} 46. g4 {[%emt 0:00:17]} Kf4 {[%emt 0:00:20]} 47. gxf5 {[%emt 0:00:14]} Bxf5 {[%emt 0:00:11]} 48. Bd3 {[%emt 0:00:23]} Bxd3 {[%emt 0:00:43]} 49. Kxd3 {[%emt 0:00:05]} a4 {[%emt 0:00:29]} 50. c5 {[%emt 0:00:30]} a3 {[%emt 0:00:32]} 51. Kc4 {[%emt 0:00:25]} Ke3 {[%emt 0:00:46]} 52. Rh3+ {[%emt 0:00:08]} Ke4 {[%emt 0:00:45]} 53. Rxa3 {[%emt 0:00:03]} Ke5 {[%emt 0:01:08]} 54. Re3+ {[%emt 0:00:16]} Kf6 {[%emt 0:00:30]} 55. Kd5 {[%emt 0:00:16]} Ra7 {[%emt 0:00:00]} 56. a3 {[%emt 0:00:10]} Ra5 {[%emt 0:00:00]} 57. Kd6 {[%emt 0:00:13]} Ra6+ {[%emt 0:00:00]} 58. c6 {[%emt 0:14:58]} Ra4 {[%emt 0:00:43]} 59. Rf3+ {[%emt 0:00:00]} Kg7 {[%emt 0:00:11]} 60. c7 {[%emt 0:00:00]} Rc4 {[%emt 0:00:09]} 61. Rd3 {[%emt 0:00:00]} 1-0

[Event "34th MPL National U12 Chess-ch 2022"]
[Site "Mysore"]
[Date "2022.04.11"]
[Round "5.3"]
[White "Aansh Nandan Nerurkar"]
[Black "Haridev S"]
[Result "0-1"]
[ECO "B52"]
[WhiteElo "1564"]
[BlackElo "1458"]
[Annotator "NA RC"]
[PlyCount "148"]
[EventDate "2022.04.09"]
[EventCountry "IND"]
[SourceTitle "playchess.com"]
[Source "ChessBase"]
[SourceQuality "1"]
[TimeControl "5400+30"]

1. e4 {[%emt 0:00:02]} c5 {[%emt 0:00:18]} 2. Nf3 {[%emt 0:00:06]} d6 {[%emt 0:00:14]} 3. Bb5+ {[%emt 0:00:07]} Bd7 {[%emt 0:00:21]} 4. Bxd7+ {[%emt 0:00:15]} Nxd7 {[%emt 0:00:27]} 5. O-O {[%emt 0:00:12]} Ngf6 {[%emt 0:00:32]} 6. Qe2 {[%emt 0:00:17]} e6 {[%emt 0:10:17]} 7. d4 {[%emt 0:00:19]} cxd4 {[%emt 0:00:25]} 8. Nxd4 {[%emt 0:00:08]} Be7 {[%emt 0:01:19]} 9. c4 {[%emt 0:01:44]} Rc8 {[%emt 0:00:55]} 10. b3 {[%emt 0:00:49]} O-O {[%emt 0:05:32]} 11. Bb2 {[%emt 0:00:48]} Qc7 {[%emt 0:05:05]} 12. Nc3 {[%emt 0:01:28]} a6 {[%emt 0:00:15]} 13. Rac1 {[%emt 0:01:20]} Rfd8 {[%emt 0:03:15]} 14. Rfd1 {[%emt 0:04:56]} Nc5 {[%emt 0:10:51]} 15. Kh1 {[%emt 0:04:29]} b6 {[%emt 0:01:28]} 16. f3 {[%emt 0:02:43]} Qb7 {[%emt 0:09:46]} 17. Qe3 {[%emt 0:04:41]} Bf8 {[%emt 0:02:47]} 18. Qg5 {[%emt 0:07:19]} h6 {[%emt 0:04:03]} 19. Qe3 {[%emt 0:00:56]} d5 {[%emt 0:04:44]} 20. e5 {[%emt 0:01:29]} Ne8 {[%emt 0:01:41]} 21. cxd5 {[%emt 0:02:11]} exd5 {[%emt 0:00:10]} 22. f4 {[%emt 0:01:35]} Ne6 {[%emt 0:01:14]} 23. Nce2 {[%emt 0:02:13]} Be7 {[%emt 0:09:20]} 24. Qg3 {[%emt 0:02:43]} Nxd4 {[%emt 0:03:07]} 25. Bxd4 {[%emt 0:01:54]} f6 {[%emt 0:01:02]} 26. Qg6 {[%emt 0:02:26]} Bc5 {[%emt 0:04:01]} 27. Qd3 {[%emt 0:05:04]} fxe5 {[%emt 0:03:37]} 28. fxe5 {[%emt 0:00:25]} a5 {[%emt 0:05:18]} 29. Rf1 {[%emt 0:02:34]} Bxd4 {[%emt 0:05:32]} 30. Nxd4 {[%emt 0:00:51]} Rxc1 {[%emt 0:02:23]} 31. Rxc1 {[%emt 0:00:59]} Rc8 {[%emt 0:04:19]} 32. Rf1 {[%emt 0:00:11]} Qe7 {[%emt 0:01:13]} 33. Qg3 {[%emt 0:00:18]} Qg5 {[%emt 0:00:31]} 34. Qxg5 {[%emt 0:00:21]} hxg5 {[%emt 0:00:01]} 35. h3 {[%emt 0:00:19]} Rc3 {[%emt 0:01:25]} 36. Ne6 {[%emt 0:01:00]} Nc7 {[%emt 0:01:02]} 37. Nxg5 {[%emt 0:00:36]} Re3 {[%emt 0:00:00]} 38. Nf3 {[%emt 0:00:08]} Nb5 {[%emt 0:00:05]} 39. Rc1 {[%emt 0:00:44]} Nc3 {[%emt 0:00:53]} 40. Nd4 {[%emt 0:00:22]} b5 {[%emt 0:00:26]} 41. e6 {[%emt 0:00:18]} b4 {[%emt 0:00:19]} 42. Rf1 {[%emt 0:00:45]} Re4 {[%emt 0:00:45]} 43. Rf2 {[%emt 0:00:38]} Kh7 {[%emt 0:00:29]} 44. Rd2 {[%emt 0:00:34]} Kg6 {[%emt 0:00:27]} 45. Kh2 {[%emt 0:00:22]} Kf6 {[%emt 0:00:33]} 46. g4 {[%emt 0:00:35]} Nxa2 {[%emt 0:00:31]} 47. e7 {[%emt 0:00:30]} Nc3 {[%emt 0:00:31]} 48. Nc6 {[%emt 0:00:11]} Kf7 {[%emt 0:00:27]} 49. Rf2+ {[%emt 0:00:37]} Ke8 {[%emt 0:00:01]} 50. Rf8+ {[%emt 0:49:58]} Kd7 51. Rd8+ {[%emt 0:00:00]} Kxc6 {[%emt 0:00:07]} 52. e8=Q+ {[%emt 0:00:00]} Rxe8 {[%emt 0:00:03]} 53. Rxe8 {[%emt 0:00:00]} a4 {[%emt 0:01:20]} 54. bxa4 {[%emt 0:00:00]} Nxa4 {[%emt 0:00:21]} 55. Rb8 {[%emt 0:00:00]} Nb6 {[%emt 0:00:01]} 56. Rf8 {[%emt 0:00:00]} b3 {[%emt 0:00:10]} 57. Rf3 {[%emt 0:00:00]} b2 {[%emt 0:00:18]} 58. Rb3 {[%emt 0:00:00]} Na4 {[%emt 0:01:13]} 59. Kg2 {[%emt 0:00:00]} Kc5 {[%emt 0:01:11]} 60. g5 {[%emt 0:00:00]} Kc4 {[%emt 0:00:52]} 61. Rb8 {[%emt 0:00:00]} Kc5 {[%emt 0:00:05]} 62. h4 {[%emt 0:00:00]} Nb6 {[%emt 0:00:02]} 63. h5 {[%emt 0:00:00]} b1=Q {[%emt 0:00:04]} 64. Rb7 {[%emt 0:00:00]} Qe4+ {[%emt 0:00:16]} 65. Kg3 {[%emt 0:00:00]} Kc6 {[%emt 0:00:13]} 66. Rf7 {[%emt 0:00:00]} Qe5+ {[%emt 0:00:23]} 67. Kg2 {[%emt 0:00:00]} Qxg5+ {[%emt 0:00:04]} 68. Kf2 {[%emt 0:00:00]} Qh4+ {[%emt 0:00:04]} 69. Ke3 {[%emt 0:00:00]} Qxh5 {[%emt 0:00:07]} 70. Rxg7 {[%emt 0:00:00]} Nc4+ {[%emt 0:00:06]} 71. Kd3 {[%emt 0:00:00]} Qf3+ {[%emt 0:00:02]} 72. Kc2 {[%emt 0:00:00]} Qe2+ {[%emt 0:00:05]} 73. Kc1 {[%emt 0:00:00]} Qd2+ {[%emt 0:00:04]} 74. Kb1 {[%emt 0:00:00]} Qb2# {[%emt 0:06:22]} 0-1

[Event "34th MPL National U12 Chess-ch 2022"]
[Site "Mysore"]
[Date "2022.04.11"]
[Round "5.4"]
[White "Adireddy Arjun"]
[Black "Ajay Santhosh Parvathareddy"]
[Result "1-0"]
[ECO "B90"]
[WhiteElo "1796"]
[BlackElo "1296"]
[Annotator "NA RC"]
[PlyCount "87"]
[EventDate "2022.04.09"]
[EventCountry "IND"]
[SourceTitle "playchess.com"]
[Source "ChessBase"]
[SourceQuality "1"]
[TimeControl "5400+30"]

1. e4 {[%emt 0:00:10]} c5 {[%emt 0:00:04]} 2. Nf3 {[%emt 0:00:09]} d6 {[%emt 0:00:02]} 3. d4 {[%emt 0:00:08]} cxd4 {[%emt 0:00:04]} 4. Nxd4 {[%emt 0:00:28]} Nf6 {[%emt 0:00:06]} 5. Nc3 {[%emt 0:00:06]} a6 {[%emt 0:00:07]} 6. Be3 {[%emt 0:00:04]} e5 {[%emt 0:00:07]} 7. Nf3 {[%emt 0:00:06]} Be7 {[%emt 0:00:19]} 8. Bc4 {[%emt 0:00:06]} Qc7 {[%emt 0:01:54]} 9. Bb3 {[%emt 0:01:17]} Nbd7 {[%emt 0:01:39]} 10. O-O {[%emt 0:02:01]} O-O {[%emt 0:00:59]} 11. a4 {[%emt 0:10:07]} b6 {[%emt 0:05:16]} 12. Nh4 {[%emt 0:09:43]} Nc5 {[%emt 0:08:35]} 13. Nd5 {[%emt 0:00:15]} Nxd5 {[%emt 0:05:24]} 14. Bxd5 {[%emt 0:00:02]} Rb8 {[%emt 0:07:23]} 15. Nf5 {[%emt 0:01:46]} Bxf5 {[%emt 0:00:42]} 16. exf5 {[%emt 0:00:08]} Nd7 {[%emt 0:05:03]} 17. Qe2 {[%emt 0:12:34]} Nf6 {[%emt 0:06:21]} 18. Bb3 {[%emt 0:02:40]} Ra8 {[%emt 0:06:25]} 19. Rfd1 {[%emt 0:04:20]} Qb7 {[%emt 0:02:43]} 20. g4 {[%emt 0:05:25]} h6 {[%emt 0:14:19]} 21. h4 {[%emt 0:00:13]} Rad8 {[%emt 0:03:23]} 22. g5 {[%emt 0:00:28]} Ne8 {[%emt 0:01:06]} 23. Bd5 {[%emt 0:08:37]} Qc7 {[%emt 0:02:07]} 24. g6 {[%emt 0:04:41]} Nf6 {[%emt 0:00:24]} 25. Bxf7+ {[%emt 0:01:20]} Kh8 {[%emt 0:28:28]} 26. c4 {[%emt 0:01:22]} Qc6 {[%emt 0:00:00]} 27. f3 {[%emt 0:10:37]} e4 {[%emt 0:00:00]} 28. fxe4 {[%emt 0:12:13]} Qxe4 {[%emt 0:00:00]} 29. Rd4 {[%emt 0:00:08]} Qe5 {[%emt 0:00:00]} 30. Qf3 {[%emt 0:03:06]} d5 {[%emt 0:00:00]} 31. cxd5 {[%emt 0:01:03]} Bc5 {[%emt 0:00:00]} 32. Rd3 {[%emt 0:00:05]} Ng4 {[%emt 0:00:00]} 33. Bxc5 {[%emt 0:02:16]} Qh2+ {[%emt 0:00:00]} 34. Kf1 {[%emt 0:00:09]} Qxb2 {[%emt 0:00:00]} 35. Qxg4 {[%emt 0:00:22]} Qxa1+ {[%emt 0:00:00]} 36. Rd1 {[%emt 0:00:02]} Qc3 {[%emt 0:00:00]} 37. Bxf8 {[%emt 0:00:15]} Rxf8 {[%emt 0:00:00]} 38. d6 {[%emt 0:00:12]} b5 {[%emt 0:00:00]} 39. d7 {[%emt 0:00:08]} Rd8 {[%emt 0:00:00]} 40. Re1 {[%emt 0:00:37]} Rf8 {[%emt 0:00:00]} 41. Re8 {[%emt 0:02:21]} Qc1+ {[%emt 0:00:00]} 42. Kg2 {[%emt 0:00:16]} Qc6+ {[%emt 0:00:00]} 43. Qe4 {[%emt 0:00:12]} Qd6 {[%emt 0:00:00]} 44. Rxf8+ {[%emt 0:00:08]} 1-0

[Event "34th MPL National U12 Chess-ch 2022"]
[Site "Mysore"]
[Date "2022.04.11"]
[Round "5.5"]
[White "Vandan Alankar Sawai"]
[Black "Gandhi, Aakash"]
[Result "0-1"]
[ECO "C14"]
[WhiteElo "1289"]
[BlackElo "1698"]
[Annotator "NA RC"]
[PlyCount "142"]
[EventDate "2022.04.09"]
[EventCountry "IND"]
[SourceTitle "playchess.com"]
[Source "ChessBase"]
[SourceQuality "1"]
[TimeControl "5400+30"]

1. e4 {[%emt 0:00:04]} e6 {[%emt 0:00:15]} 2. d4 {[%emt 0:00:06]} d5 {[%emt 0:00:08]} 3. Nc3 {[%emt 0:00:16]} Nf6 {[%emt 0:00:06]} 4. Bg5 {[%emt 0:00:05]} Be7 {[%emt 0:00:16]} 5. e5 {[%emt 0:00:21]} Nfd7 {[%emt 0:00:08]} 6. Bxe7 {[%emt 0:00:06]} Qxe7 {[%emt 1:32:37]} 7. f4 {[%emt 0:00:14]} O-O {[%emt 0:00:00]} 8. Nf3 {[%emt 0:01:38]} c5 {[%emt 0:00:00]} 9. Qd2 {[%emt 0:00:56]} Nc6 {[%emt 0:00:00]} 10. dxc5 {[%emt 0:00:05]} Nxc5 {[%emt 0:00:00]} 11. Bd3 {[%emt 0:00:05]} Nxd3+ {[%emt 0:00:00]} 12. cxd3 {[%emt 0:00:22]} b6 {[%emt 0:00:00]} 13. O-O-O {[%emt 0:01:24]} b5 {[%emt 0:00:00]} 14. Kb1 {[%emt 0:00:51]} Ba6 {[%emt 0:00:00]} 15. Ne2 {[%emt 0:00:45]} b4 {[%emt 0:00:00]} 16. Ned4 {[%emt 0:00:29]} Nxd4 {[%emt 0:00:00]} 17. Nxd4 {[%emt 0:00:02]} Qc5 {[%emt 0:00:00]} 18. Qe3 {[%emt 0:00:24]} Rac8 {[%emt 0:00:00]} 19. Rc1 {[%emt 0:00:35]} Qb6 {[%emt 0:00:00]} 20. h4 {[%emt 0:05:18]} Bb7 {[%emt 0:00:00]} 21. h5 {[%emt 0:02:14]} b3 {[%emt 0:00:00]} 22. a3 {[%emt 0:01:21]} Rc2 {[%emt 0:00:00]} 23. Rxc2 {[%emt 0:03:23]} bxc2+ {[%emt 0:00:00]} 24. Kxc2 {[%emt 0:00:30]} Ba6 {[%emt 0:00:00]} 25. b3 {[%emt 0:05:26]} Bb5 {[%emt 0:00:00]} 26. Re1 {[%emt 0:08:27]} Rc8+ {[%emt 0:00:00]} 27. Kb2 {[%emt 0:00:15]} Ba4 {[%emt 0:00:00]} 28. Rb1 {[%emt 0:11:48]} Bxb3 {[%emt 0:00:00]} 29. Ka1 {[%emt 0:00:05]} Rc3 {[%emt 0:00:00]} 30. Kb2 {[%emt 0:05:13]} Ba4+ {[%emt 0:00:00]} 31. Kxc3 {[%emt 0:00:28]} Qxb1 {[%emt 0:00:00]} 32. Qd2 {[%emt 0:00:53]} h6 {[%emt 0:00:00]} 33. Qb2 {[%emt 0:05:04]} Qe1+ {[%emt 0:00:00]} 34. Qd2 {[%emt 0:00:10]} Qh1 {[%emt 0:00:00]} 35. Qb2 {[%emt 0:06:08]} Kh7 {[%emt 0:00:00]} 36. g4 {[%emt 0:01:07]} Qg1 {[%emt 0:00:00]} 37. f5 {[%emt 0:04:14]} Qe1+ {[%emt 0:00:00]} 38. Qd2 {[%emt 0:00:13]} Qxe5 {[%emt 0:00:00]} 39. fxe6 {[%emt 0:01:20]} fxe6 {[%emt 0:00:00]} 40. Qf2 {[%emt 0:00:07]} Qd6 {[%emt 0:00:00]} 41. Kb2 {[%emt 0:05:07]} Qb6+ {[%emt 0:00:00]} 42. Ka2 {[%emt 0:00:28]} Bb3+ {[%emt 0:00:00]} 43. Ka1 {[%emt 0:00:34]} Bc2 {[%emt 0:00:00]} 44. Qxc2 {[%emt 0:02:34]} Qxd4+ {[%emt 0:00:00]} 45. Ka2 {[%emt 0:00:12]} Qxg4 {[%emt 0:00:00]} 46. d4+ {[%emt 0:00:25]} Qe4 {[%emt 0:00:00]} 47. Qd2 {[%emt 0:00:06]} Qf5 {[%emt 0:00:00]} 48. Qe2 {[%emt 0:00:08]} a5 {[%emt 0:00:00]} 49. Qd1 {[%emt 0:00:42]} Qe4 {[%emt 0:00:00]} 50. Qd2 {[%emt 0:00:05]} a4 {[%emt 0:00:00]} 51. Qd1 {[%emt 0:00:13]} Qe3 {[%emt 0:00:00]} 52. Qc2+ {[%emt 0:00:28]} Qe4 {[%emt 0:00:00]} 53. Qd1 {[%emt 0:00:02]} Qe3 {[%emt 0:00:00]} 54. Qc2+ {[%emt 0:00:42]} Kg8 {[%emt 0:00:00]} 55. Qc8+ {[%emt 0:00:06]} Kf7 {[%emt 0:00:00]} 56. Qd7+ {[%emt 0:00:45]} Kf6 {[%emt 0:00:00]} 57. Qd8+ {[%emt 0:00:05]} Kf5 {[%emt 0:00:00]} 58. Qf8+ {[%emt 0:00:16]} Ke4 {[%emt 0:00:00]} 59. Qxg7 {[%emt 0:00:07]} Qb3+ {[%emt 0:00:00]} 60. Ka1 {[%emt 0:00:17]} Qxa3+ {[%emt 0:00:00]} 61. Kb1 {[%emt 0:00:21]} Qd3+ {[%emt 0:00:00]} 62. Ka2 {[%emt 0:00:09]} Qb3+ {[%emt 0:00:00]} 63. Ka1 {[%emt 0:00:03]} Qd1+ {[%emt 0:00:00]} 64. Ka2 {[%emt 0:00:03]} Qxh5 {[%emt 0:00:00]} 65. Qg2+ {[%emt 0:00:31]} Qf3 {[%emt 0:00:00]} 66. Qc2+ {[%emt 0:00:23]} Qd3 {[%emt 0:00:00]} 67. Qg2+ {[%emt 0:00:13]} Kxd4 {[%emt 0:00:00]} 68. Qg7+ {[%emt 0:00:16]} e5 {[%emt 0:00:00]} 69. Qg1+ {[%emt 0:00:07]} Kc3 {[%emt 0:00:00]} 70. Qa1+ {[%emt 0:00:42]} Kd2 {[%emt 0:00:00]} 71. Qh1 {[%emt 0:01:01]} Qc2+ {[%emt 0:00:00]} 0-1

[Event "34th MPL National U12 Chess-ch 2022"]
[Site "Mysore"]
[Date "2022.04.11"]
[Round "5.6"]
[White "Goutham Krishna H"]
[Black "Venkat, Raghav"]
[Result "1-0"]
[ECO "A33"]
[WhiteElo "1541"]
[BlackElo "2110"]
[Annotator "RC"]
[PlyCount "107"]
[EventDate "2022.04.09"]
[EventCountry "IND"]
[SourceTitle "playchess.com"]
[Source "ChessBase"]
[SourceQuality "1"]
[TimeControl "5400+30"]

1. Nf3 {[%emt 0:00:03]} c5 {[%emt 0:00:05]} 2. c4 {[%emt 0:00:06]} Nf6 {[%emt 0:00:19]} 3. Nc3 {[%emt 0:00:06]} e6 {[%emt 0:00:33]} 4. a3 {[%emt 0:00:09]} Nc6 {[%emt 0:01:33]} 5. d4 {[%emt 0:01:52]} cxd4 {[%emt 0:01:55]} 6. Nxd4 {[%emt 0:00:02]} Bc5 {[%emt 0:00:50]} 7. Nb3 {[%emt 0:00:22]} Be7 {[%emt 0:01:21]} 8. e4 {[%emt 0:02:15]} d6 {[%emt 0:01:39]} 9. Be2 {[%emt 0:00:10]} O-O {[%emt 0:00:43]} 10. O-O {[%emt 0:00:12]} a6 {[%emt 1:26:32]} 11. Be3 {[%emt 0:00:38]} Qc7 {[%emt 0:00:00]} 12. g4 {[%emt 0:03:00]} Ne5 {[%emt 0:00:00]} 13. g5 {[%emt 0:01:15]} Nfd7 {[%emt 0:00:00]} 14. Rc1 {[%emt 0:01:14]} Qd8 {[%emt 0:00:00]} 15. h4 {[%emt 0:02:36]} Nc6 {[%emt 0:00:00]} 16. f4 {[%emt 0:01:43]} b6 {[%emt 0:00:00]} 17. Bf3 {[%emt 0:05:40]} Bb7 {[%emt 0:00:00]} 18. Qe2 {[%emt 0:07:33]} Nc5 {[%emt 0:00:00]} 19. Nd2 {[%emt 0:02:54]} a5 {[%emt 0:00:00]} 20. b3 {[%emt 0:02:39]} Rc8 {[%emt 0:00:00]} 21. Rb1 {[%emt 0:02:10]} Qc7 {[%emt 0:00:00]} 22. b4 {[%emt 0:01:48]} Nd7 {[%emt 0:00:00]} 23. h5 {[%emt 0:01:33]} Qd8 {[%emt 0:00:00]} 24. g6 {[%emt 0:03:26]} Bf6 {[%emt 0:00:00]} 25. Nb5 {[%emt 0:02:04]} Qe7 {[%emt 0:00:00]} 26. Qd3 {[%emt 0:01:18]} axb4 {[%emt 0:00:00]} 27. gxf7+ {[%emt 0:10:55]} Kh8 {[%emt 0:00:00]} 28. axb4 {[%emt 0:01:32]} d5 {[%emt 0:00:00]} 29. cxd5 {[%emt 0:00:48]} Nxb4 {[%emt 0:00:00]} 30. Qb3 {[%emt 0:01:14]} Nxd5 {[%emt 0:00:00]} 31. exd5 {[%emt 0:00:12]} Bxd5 {[%emt 0:00:00]} 32. Bxd5 {[%emt 0:00:05]} exd5 {[%emt 0:00:00]} 33. Bf2 {[%emt 0:03:13]} Nc5 {[%emt 0:00:00]} 34. Qh3 {[%emt 0:02:59]} Rcd8 {[%emt 0:00:00]} 35. Nd4 {[%emt 0:02:35]} Qxf7 {[%emt 0:00:00]} 36. Rxb6 {[%emt 0:01:00]} Rde8 {[%emt 0:00:00]} 37. Nb5 {[%emt 0:02:28]} Qd7 {[%emt 0:00:00]} 38. Qxd7 {[%emt 0:00:19]} Nxd7 {[%emt 0:00:00]} 39. Rd6 {[%emt 0:00:15]} Rd8 {[%emt 0:00:00]} 40. Rxd5 {[%emt 0:00:33]} Nb8 {[%emt 0:00:00]} 41. Rxd8 {[%emt 0:00:12]} Rxd8 {[%emt 0:00:00]} 42. Ne4 {[%emt 0:00:06]} Rd5 {[%emt 0:00:00]} 43. Rc1 {[%emt 0:01:00]} Na6 {[%emt 0:00:00]} 44. Nbd6 {[%emt 0:01:02]} h6 {[%emt 0:00:00]} 45. f5 {[%emt 0:01:13]} Bb2 {[%emt 0:00:46]} 46. Rc8+ {[%emt 0:00:30]} Kh7 {[%emt 0:00:04]} 47. Nf7 {[%emt 0:01:58]} g6 {[%emt 0:00:15]} 48. hxg6+ {[%emt 0:00:09]} Kg7 {[%emt 0:00:08]} 49. Ned6 {[%emt 0:00:05]} Rd1+ {[%emt 0:01:51]} 50. Kg2 {[%emt 0:00:02]} Nb4 {[%emt 0:00:20]} 51. Ne8+ {[%emt 0:00:10]} Kf8 {[%emt 0:00:04]} 52. Bc5+ {[%emt 0:00:06]} Kg8 {[%emt 0:00:09]} 53. Nf6+ {[%emt 0:00:05]} Kg7 {[%emt 0:00:07]} 54. Nh5# {[%emt 0:00:04]} 1-0

[Event "34th MPL National U12 Chess-ch 2022"]
[Site "Mysore"]
[Date "2022.04.11"]
[Round "6.1"]
[White "Vaz, Ethan"]
[Black "Reyan"]
[Result "1-0"]
[ECO "B22"]
[WhiteElo "1384"]
[BlackElo "1543"]
[Annotator "NA RC"]
[PlyCount "48"]
[EventDate "2022.04.09"]
[EventCountry "IND"]
[SourceTitle "playchess.com"]
[Source "ChessBase"]
[SourceQuality "1"]
[TimeControl "5400+30"]

1. e4 {[%emt 0:00:04]} c5 {[%emt 0:00:03]} 2. c3 {[%emt 0:00:09]} Nf6 {[%emt 0:00:16]} 3. e5 {[%emt 0:00:15]} Nd5 {[%emt 0:00:04]} 4. d4 {[%emt 0:00:17]} cxd4 {[%emt 0:00:17]} 5. cxd4 {[%emt 0:00:43]} d6 {[%emt 0:00:11]} 6. Nf3 {[%emt 0:00:32]} Nc6 {[%emt 0:00:07]} 7. Bc4 {[%emt 0:00:11]} Nb6 {[%emt 0:00:08]} 8. Bb5 {[%emt 0:00:11]} dxe5 {[%emt 0:00:05]} 9. Nxe5 {[%emt 0:00:19]} Bd7 {[%emt 0:00:06]} 10. Nxd7 {[%emt 0:00:38]} Qxd7 {[%emt 0:00:03]} 11. Nc3 {[%emt 0:00:28]} e6 {[%emt 0:00:05]} 12. O-O {[%emt 0:01:33]} Be7 {[%emt 0:00:20]} 13. Be3 {[%emt 0:05:54]} O-O {[%emt 0:00:33]} 14. Rc1 {[%emt 0:15:13]} a6 {[%emt 0:03:01]} 15. Bxc6 {[%emt 0:09:13]} bxc6 {[%emt 0:02:47]} 16. Qc2 {[%emt 0:08:07]} Rfc8 {[%emt 0:02:48]} 17. Na4 {[%emt 0:08:52]} Nd5 {[%emt 0:03:06]} 18. Nc5 {[%emt 0:07:30]} Bxc5 {[%emt 0:00:23]} 19. Qxc5 {[%emt 0:00:33]} Rab8 {[%emt 0:01:32]} 20. Qa3 {[%emt 0:02:48]} Qb7 {[%emt 0:02:48]} 21. b3 {[%emt 0:09:27]} Qb5 {[%emt 0:08:05]} 22. Qd6 {[%emt 0:03:10]} Qe2 {[%emt 0:03:16]} 23. Rxc6 {[%emt 0:03:50]} Qxa2 {[%emt 0:07:16]} 24. Rfc1 {[%emt 0:03:03]} Qe2 {[%emt 1:05:10]} 1-0